bitfinex/quotes_BTCUSD_20251221
["timestamp","ask_amount","ask_price","bid_price","bid_amount"]
[1766336330035,0.24713,88436.0,88424.0,0.00568]
[1766336330784,0.25843761,88436.0,88424.0,0.00568]
[1766336332088,0.24713,88436.0,88424.0,0.00568]
[1766336332284,0.25843761,88436.0,88424.0,0.00568]
[1766336332665,0.24713,88436.0,88424.0,0.00568]
[1766336334260,0.03826154,88435.0,88424.0,0.00568]
[1766336334479,0.03826154,88435.0,88425.0,0.12106]
[1766336334836,0.12764,88436.0,88425.0,0.12106]
[1766336336024,0.24713,88435.0,88424.0,0.00568]
[1766336339370,0.24713,88435.0,88422.0,0.0226188]
[1766336339371,0.24713,88435.0,88422.0,0.0113094]
[1766336339562,0.24713,88435.0,88423.0,0.00568]
[1766336339563,0.000549,88424.0,88423.0,0.00568]
[1766336339767,0.13894786,88434.0,88423.0,0.00568]
[1766336340015,0.12764,88434.0,88423.0,0.00568]
[1766336341298,0.01130761,88436.0,88424.0,0.1209]
[1766336341743,0.01130774,88435.0,88424.0,0.1209]
[1766336342873,0.01130774,88435.0,88424.0,0.14260577]
[1766336343008,0.01130761,88436.0,88424.0,0.1209]
[1766336343724,0.12764,88434.0,88423.0,0.00568]
[1766336344323,0.01130812,88432.0,88423.0,0.00568]
[1766336344533,0.01130799,88433.0,88423.0,0.00568]
[1766336344969,0.13894786,88434.0,88423.0,0.00568]
[1766336345198,0.04111151,88433.0,88423.0,0.00568]
[1766336345556,0.0524195,88433.0,88423.0,0.00568]
[1766336345808,0.04111151,88433.0,88423.0,0.00568]
[1766336346929,0.0524195,88433.0,88423.0,0.00568]
[1766336347085,0.12764,88434.0,88423.0,0.00568]
[1766336347472,0.13894786,88434.0,88423.0,0.00568]
[1766336348012,0.12764,88434.0,88423.0,0.00568]
[1766336348371,0.13894786,88434.0,88423.0,0.00568]
[1766336349405,0.12764,88434.0,88423.0,0.00568]
[1766336352080,0.13894786,88434.0,88423.0,0.00568]
[1766336352261,0.12764,88434.0,88423.0,0.00568]
[1766336353843,0.13894786,88434.0,88423.0,0.00568]
[1766336354088,0.12529,88432.0,88423.0,0.00568]
[1766336358902,0.02720549,88429.0,88423.0,0.00568]
[1766336361167,0.12529,88431.0,88423.0,0.00568]
[1766336361565,0.01130786,88434.0,88423.0,0.005367]
[1766336361767,0.01130786,88434.0,88424.0,0.11752]
[1766336361978,0.01120786,88434.0,88424.0,0.11752]
[1766336362170,0.01110786,88434.0,88424.0,0.11752]
[1766336362488,0.01110786,88434.0,88424.0,0.116971]
[1766336363794,0.01130799,88433.0,88424.0,0.116971]
[1766336364224,0.01110786,88434.0,88424.0,0.116971]
[1766336364636,0.01130799,88433.0,88424.0,0.116971]
[1766336365280,0.01110786,88434.0,88424.0,0.116971]
[1766336366363,0.03851323,88435.0,88424.0,0.116971]
[1766336367390,0.01130786,88434.0,88424.0,0.116971]
[1766336368370,0.03851323,88435.0,88424.0,0.116971]
[1766336368567,0.01130786,88434.0,88424.0,0.116971]
[1766336369063,0.03851323,88435.0,88424.0,0.116971]
[1766336369274,0.01130786,88434.0,88424.0,0.116971]
[1766336369989,0.03851323,88435.0,88424.0,0.116971]
[1766336373283,0.06729248,88434.0,88424.0,0.116971]
[1766336373469,0.03851323,88435.0,88424.0,0.116971]
[1766336373670,0.02720549,88435.0,88424.0,0.116971]
[1766336374575,0.00568,88445.0,88436.0,0.08121]
[1766336374776,0.03965895,88445.0,88436.0,0.08121]
[1766336377334,0.02445681,88447.0,88435.0,0.01130774]
[1766336377532,0.02445681,88447.0,88436.0,0.09245761]
[1766336377753,0.05010712,88448.0,88436.0,0.09245761]
[1766336378124,0.0113062,88447.0,88436.0,0.08115]
[1766336378324,0.08587,88448.0,88437.0,0.09208466]
[1766336378546,0.01130633,88446.0,88437.0,0.09208466]
[1766336378742,0.01130633,88446.0,88437.0,0.08114]
[1766336379076,0.01130646,88445.0,88437.0,0.08114]
[1766336379226,0.03576314,88446.0,88437.0,0.08114]
[1766336379425,0.01130633,88446.0,88437.0,0.08114]
[1766336379676,0.03576301,88447.0,88437.0,0.08114]
[1766336380038,0.02445681,88447.0,88437.0,0.08114]
[1766336380240,0.03576301,88447.0,88438.0,0.00568]
[1766336380442,0.0113062,88447.0,88438.0,0.00568]
[1766336381033,0.02445681,88447.0,88438.0,0.00568]
[1766336381277,0.08587,88448.0,88438.0,0.00568]
[1766336381686,0.01698595,88449.0,88438.0,0.00568]
[1766336381896,0.00574859,88449.0,88438.0,0.00568]
[1766336382064,0.0113062,88447.0,88438.0,0.02207928]
[1766336382263,0.01130607,88448.0,88438.0,0.02207928]
[1766336382458,0.0113062,88447.0,88438.0,0.02207928]
[1766336382705,0.0113062,88447.0,88438.0,0.00568]
[1766336384381,0.01130607,88448.0,88438.0,0.00568]
[1766336384644,0.0113062,88447.0,88438.0,0.00568]
[1766336385061,0.01130607,88448.0,88438.0,0.00568]
[1766336385309,0.0113062,88447.0,88438.0,0.00568]
[1766336385456,0.01130607,88448.0,88438.0,0.00568]
[1766336386270,0.0113062,88447.0,88438.0,0.00568]
[1766336386599,0.01130607,88448.0,88438.0,0.00568]
[1766336387183,0.0113062,88447.0,88438.0,0.00568]
[1766336387391,0.01130799,88450.0,88438.0,0.00568]
[1766336387601,0.0002,88455.0,88440.0,0.0113071]
[1766336387918,0.01060767,88454.0,88441.0,0.01130697]
[1766336388208,0.01060767,88453.0,88442.0,0.02720549]
[1766336388533,0.0002,88455.0,88442.0,0.02720549]
[1766336388671,0.01060734,88454.0,88443.0,0.01347199]
[1766336388872,0.01150518,88455.0,88443.0,0.01347199]
[1766336389218,0.01060734,88454.0,88443.0,0.01347199]
[1766336389420,0.0002,88455.0,88443.0,0.01347199]
[1766336389611,0.01130441,88461.0,88443.0,0.01347199]
[1766336389612,0.04186871,88463.0,88446.0,0.02720549]
[1766336389820,0.02261317,88463.0,88449.0,0.01130595]
[1766336390114,3.17e-06,88465.0,88455.0,0.01130518]
[1766336390321,0.06130313,88471.0,88454.0,0.01130531]
[1766336390322,0.05,88474.0,88465.0,0.0113039]
[1766336390559,0.05,88474.0,88454.0,0.02720549]
[1766336390560,8.36e-06,88475.0,88454.0,0.01130531]
[1766336390561,0.01130262,88475.0,88454.0,0.01130531]
[1766336390676,0.24085,88481.0,88450.0,0.03396604]
[1766336390677,0.01130428,88462.0,88450.0,0.03396604]
[1766336390885,0.01130441,88461.0,88450.0,0.03396604]
[1766336391088,0.01130416,88463.0,88451.0,0.01133791]
[1766336391313,0.01130416,88463.0,88452.0,0.00568]
[1766336391515,0.0113048,88458.0,88452.0,0.00568]
[1766336391725,0.01130454,88460.0,88452.0,0.00568]
[1766336391930,0.01130467,88459.0,88452.0,0.00548]
[1766336392327,0.0113048,88458.0,88452.0,0.00548]
[1766336392725,0.01130441,88461.0,88452.0,0.00548]
[1766336392904,0.01130441,88461.0,88446.0,0.01130441]
[1766336392905,0.0113048,88458.0,88446.0,0.01130441]
[1766336393405,0.01130428,88462.0,88447.0,0.00568]
[1766336393642,0.0002463,88449.0,88447.0,0.00568]
[1766336393824,3e-07,88449.0,88447.0,0.00568]
[1766336396372,0.000796,88447.0,88446.0,0.01130441]
[1766336396516,3e-07,88449.0,88446.0,0.01698441]
[1766336396714,3e-07,88449.0,88446.0,0.01130441]
[1766336396919,3e-07,88449.0,88447.0,0.00568]
[1766336397350,3e-07,88449.0,88447.0,0.004884]
[1766336398326,0.01110573,88453.0,88447.0,0.004884]
[1766336398638,0.01110573,88453.0,88447.0,0.004684]
[1766336399045,0.01090573,88453.0,88447.0,0.004684]
[1766336399245,0.01130531,88454.0,88447.0,0.004484]
[1766336399444,0.06783197,88454.0,88447.0,0.004484]
[1766336399649,0.01110531,88454.0,88447.0,0.004484]
[1766336399844,0.01110531,88454.0,88447.0,0.004284]
[1766336400048,0.01130543,88453.0,88447.0,0.004284]
[1766336400251,0.01130518,88455.0,88447.0,0.004284]
[1766336400453,0.01130518,88455.0,88447.0,0.004084]
[1766336400651,0.13080492,88457.0,88447.0,0.004084]
[1766336400851,0.0113048,88458.0,88447.0,0.004084]
[1766336401062,0.01130428,88462.0,88448.0,0.01217423]
[1766336401544,0.12135,88462.0,88448.0,0.01217423]
[1766336401767,0.01130377,88466.0,88448.0,0.01217423]
[1766336401768,0.01130186,88481.0,88465.0,0.0113039]
[1766336401970,0.01130186,88481.0,88461.0,0.06782635]
[1766336401971,0.06114722,88491.0,88461.0,0.06782635]
[1766336401972,0.0153902,88487.0,88481.0,0.00055]
[1766336402121,11.63535,88500.0,88482.0,0.00568]
[1766336402122,2e-07,88489.0,88482.0,0.00568]
[1766336402325,11.74567016,88500.0,88499.0,0.05649781]
[1766336402326,10.22763013,88500.0,88499.0,0.05649781]
[1766336402505,10.22763013,88500.0,88482.0,0.04792182]
[1766336402506,0.00128239,88499.0,88484.0,0.01130147]
[1766336402687,0.00128239,88499.0,88482.0,0.0339436]
[1766336402688,0.00128239,88499.0,88482.0,0.03222303]
[1766336402893,0.00128239,88499.0,88480.0,0.01130198]
[1766336402894,0.00128239,88499.0,88483.0,0.00568]
[1766336403206,0.08009049,88499.0,88483.0,0.0169816]
[1766336403402,0.00073339,88499.0,88483.0,0.06218762]
[1766336403602,0.01203295,88499.0,88483.0,0.00568]
[1766336404124,0.01130045,88492.0,88483.0,0.0023571]
[1766336404488,0.01130045,88492.0,88481.0,0.03222303]
[1766336404489,0.01130109,88487.0,88481.0,0.03222303]
[1766336404657,0.46127676,88493.0,88460.0,0.04524]
[1766336404658,0.01130262,88475.0,88460.0,0.04524]
[1766336404812,0.46127676,88470.0,88464.0,0.03396275]
[1766336405014,0.01130275,88474.0,88464.0,0.03396275]
[1766336405241,0.12703,88478.0,88462.0,0.01130428]
[1766336405700,0.0113025,88476.0,88461.0,0.00568]
[1766336405864,0.01130275,88474.0,88461.0,0.00568]
[1766336406023,0.00568,88478.0,88461.0,0.00568]
[1766336406232,0.00568,88478.0,88463.0,0.01130416]
[1766336406466,0.0113016,88483.0,88461.0,0.00568]
[1766336406467,0.01698058,88491.0,88478.0,0.00055]
[1766336406681,0.01203384,88492.0,88478.0,0.00055]
[1766336406843,0.00073339,88492.0,88481.0,0.01130186]
[1766336407043,0.00073339,88492.0,88480.0,0.46127676]
[1766336407044,0.00568,88491.0,88480.0,0.46127676]
[1766336407559,0.00568,88491.0,88476.0,0.0113025]
[1766336407740,0.00073339,88492.0,88480.0,0.46127676]
[1766336407963,0.00568,88490.0,88480.0,0.46127676]
[1766336408169,0.00568,88490.0,88477.0,0.01130237]
[1766336408366,0.00073339,88492.0,88480.0,0.46127676]
[1766336408568,0.00568,88489.0,88480.0,0.46127676]
[1766336408832,0.00568,88489.0,88476.0,0.0113025]
[1766336408833,0.00548,88489.0,88476.0,0.0113025]
[1766336408967,0.00548,88489.0,88479.0,0.46107676]
[1766336409374,0.00548,88489.0,88480.0,0.01130198]
[1766336409571,0.00548,88489.0,88479.0,0.47237887]
[1766336409832,0.00548,88489.0,88480.0,0.01130198]
[1766336410418,0.00073339,88488.0,88480.0,0.01130198]
[1766336410622,0.00018339,88488.0,88480.0,0.01130198]
[1766336410982,0.00546339,88489.0,88481.0,0.01130186]
[1766336411188,0.00568,88489.0,88481.0,0.01130186]
[1766336411404,0.00568,88489.0,88480.0,0.01110198]
[1766336411605,0.00568,88489.0,88480.0,0.01090198]
[1766336412024,0.00568,88489.0,88444.0,0.06042471]
[1766336412025,0.00548,88489.0,88475.0,0.00568]
[1766336412350,0.00055,88475.0,88462.0,0.00568]
[1766336412484,0.01698237,88477.0,88466.0,0.01130224]
[1766336412686,0.00568,88477.0,88462.0,0.01698428]
[1766336412908,0.00568,88477.0,88463.0,0.01130416]
[1766336413356,0.00568,88477.0,88462.0,0.03396665]
[1766336413534,0.06219214,88477.0,88462.0,0.01698237]
[1766336413720,0.01130275,88474.0,88462.0,0.01698237]
[1766336413922,0.01130275,88474.0,88458.0,0.0113048]
[1766336414121,0.01130301,88472.0,88457.0,0.02711255]
[1766336414343,0.01130288,88473.0,88457.0,0.02711255]
[1766336414748,0.01130288,88473.0,88457.0,0.03841747]
[1766336415000,0.01130275,88474.0,88458.0,0.0113048]
[1766336415219,0.01130288,88473.0,88457.0,0.01130492]
[1766336415439,0.01130288,88473.0,88455.0,0.01130518]
[1766336415655,0.01130288,88473.0,88456.0,0.02720549]
[1766336415869,0.01130301,88472.0,88456.0,0.03851054]
[1766336416087,0.01130313,88471.0,88456.0,0.02720549]
[1766336416272,0.00568,88470.0,88456.0,0.02720549]
[1766336416502,0.00548,88470.0,88456.0,0.02700549]
[1766336416978,0.00548,88470.0,88456.0,0.02720549]
[1766336417426,0.00548,88470.0,88459.0,0.01130467]
[1766336417627,0.01130211,88479.0,88459.0,0.01130467]
[1766336417628,0.01130224,88478.0,88462.0,0.01130428]
[1766336417824,0.00568,88477.0,88462.0,0.01130428]
[1766336418208,0.00568,88477.0,88463.0,0.01130416]
[1766336418372,0.00046174,88464.0,88462.0,0.01130428]
[1766336418576,0.00568,88470.0,88464.0,0.01130403]
[1766336418787,0.00568,88470.0,88463.0,0.01130416]
[1766336419600,0.01140924,88478.0,88462.0,0.01130428]
[1766336419797,0.00568,88477.0,88464.0,0.01130403]
[1766336420431,0.00568,88476.0,88464.0,0.01130403]
[1766336420673,0.00568,88475.0,88465.0,0.0113039]
[1766336420880,0.00568,88475.0,88462.0,0.01130428]
[1766336421252,0.00568,88475.0,88461.0,0.01130441]
[1766336421426,0.00568,88475.0,88463.0,0.01130416]
[1766336421992,0.01140924,88478.0,88462.0,0.01130428]
[1766336422214,0.01698237,88477.0,88460.0,0.47234911]
[1766336422850,0.01130262,88475.0,88455.0,0.05652542]
[1766336423028,0.01130262,88475.0,88459.0,0.01130467]
[1766336423220,0.01110262,88475.0,88458.0,0.0113048]
[1766336423424,0.01110262,88475.0,88459.0,0.01130467]
[1766336423845,0.01130275,88474.0,88458.0,0.0113048]
[1766336424051,0.00024618,88472.0,88458.0,0.0113048]
[1766336424426,0.00024618,88472.0,88459.0,0.01130467]
[1766336424654,0.00024618,88472.0,88458.0,0.0113048]
[1766336425046,0.00024618,88472.0,88457.0,0.01130492]
[1766336425047,0.000549,88458.0,88447.0,0.06783717]
[1766336425253,0.00568,88461.0,88449.0,0.01130595]
[1766336425449,0.00568,88461.0,88448.0,0.01130607]
[1766336425450,0.00568,88461.0,88447.0,0.02260895]
[1766336425650,0.00568,88461.0,88448.0,0.01130607]
[1766336425993,0.00568,88461.0,88449.0,0.01130595]
[1766336426475,0.00568,88461.0,88450.0,0.01130582]
[1766336426629,0.00568,88461.0,88449.0,0.01130595]
[1766336428044,0.00568,88461.0,88448.0,0.01130607]
[1766336428474,0.00568,88461.0,88446.0,0.01130633]
[1766336428674,0.00568,88461.0,88447.0,0.0113062]
[1766336429076,0.00568,88461.0,88446.0,0.01110633]
[1766336429274,0.01130467,88459.0,88441.0,0.04419246]
[1766336429477,0.00568,88461.0,88432.0,0.01130812]
[1766336429478,0.01130569,88451.0,88432.0,0.01130812]
[1766336429676,0.13828,88453.0,88430.0,0.46104457]
[1766336429677,0.00568,88450.0,88437.0,0.01130748]
[1766336430075,0.00568,88450.0,88438.0,0.01130735]
[1766336430401,0.00568,88450.0,88439.0,0.01130722]
[1766336430583,0.00548,88450.0,88440.0,0.0113071]
[1766336430786,0.00548,88450.0,88439.0,0.01137581]
[1766336431418,0.00548,88450.0,88439.0,6.859e-05]
[1766336431591,0.00548,88450.0,88439.0,0.01137581]
[1766336431788,0.00548,88450.0,88439.0,6.859e-05]
[1766336432676,0.00548,88450.0,88439.0,0.01137581]
[1766336433311,0.00548,88450.0,88439.0,6.859e-05]
[1766336433958,0.01130607,88448.0,88439.0,5.9e-07]
[1766336434092,0.0113062,88447.0,88439.0,5.9e-07]
[1766336434291,0.01130607,88448.0,88439.0,5.9e-07]
[1766336434828,0.15506582,88450.0,88439.0,5.9e-07]
[1766336435308,0.15506582,88450.0,88432.0,0.01130812]
[1766336435309,0.01130684,88442.0,88432.0,0.01084697]
[1766336435505,0.46652457,88450.0,88432.0,0.00010712]
[1766336435506,0.14461722,88439.0,88432.0,0.00010712]
[1766336435955,0.14461722,88439.0,88429.0,0.04990712]
[1766336435956,0.13331,88439.0,88429.0,0.04990712]
[1766336436286,0.13341696,88439.0,88429.0,0.04990712]
[1766336436505,0.03965775,88441.0,88430.0,0.02720549]
[1766336436506,0.03397775,88441.0,88430.0,0.02720549]
[1766336436683,0.01130607,88448.0,88439.0,6.8e-05]
[1766336437009,0.01130595,88449.0,88432.0,0.01130812]
[1766336437010,0.03397375,88445.0,88432.0,0.01130812]
[1766336437512,0.03397375,88445.0,88430.0,0.00010696]
[1766336437513,0.04528021,88445.0,88430.0,0.00010696]
[1766336438250,0.01130658,88444.0,88430.0,0.00010696]
[1766336438454,0.01130671,88443.0,88430.0,0.00010696]
[1766336439079,0.01130697,88441.0,88430.0,0.00010696]
[1766336439251,0.01130684,88442.0,88430.0,0.00010696]
[1766336439252,0.13899,88440.0,88430.0,9.6e-07]
[1766336439464,0.01130748,88437.0,88430.0,9.6e-07]
[1766336440372,0.01130761,88436.0,88430.0,9.6e-07]
[1766336440939,0.01130748,88437.0,88430.0,9.6e-07]
[1766336441059,0.01130761,88436.0,88430.0,9.6e-07]
[1766336441258,0.01130748,88437.0,88430.0,9.6e-07]
[1766336441463,0.13331,88436.0,88430.0,9.6e-07]
[1766336442382,0.14461761,88436.0,88430.0,9.6e-07]
[1766336442578,0.01130786,88434.0,88430.0,9.6e-07]
[1766336442784,0.00568,88433.0,88430.0,9.6e-07]
[1766336445113,0.05096,88433.0,88430.0,9.6e-07]
[1766336449052,0.05096,88433.0,88396.0,0.36658675]
[1766336449053,0.01130837,88430.0,88414.0,0.06131042]
[1766336449251,0.13331,88431.0,88414.0,0.06131042]
[1766336449603,0.13331,88431.0,88417.0,0.01131004]
[1766336449777,0.14461825,88431.0,88414.0,0.06131042]
[1766336450007,0.14461825,88431.0,88415.0,0.01131029]
[1766336450155,0.14461825,88431.0,88414.0,0.06131042]
[1766336450366,0.13331,88431.0,88416.0,0.01131017]
[1766336450547,0.13331,88431.0,88417.0,0.01131004]
[1766336451370,0.13331,88431.0,88418.0,0.01130991]
[1766336451590,0.17132,88433.0,88418.0,0.01130991]
[1766336451990,0.18262799,88433.0,88417.0,0.01131004]
[1766336453030,0.18262799,88433.0,88418.0,0.01130991]
[1766336453231,0.01130812,88432.0,88416.0,0.01131017]
[1766336453750,0.01130825,88431.0,88415.0,0.01131029]
[1766336453954,0.0113085,88429.0,88414.0,0.05]
[1766336454913,0.0113085,88429.0,88414.0,0.06131042]
[1766336455422,0.06785013,88431.0,88415.0,0.01131029]
[1766336455423,0.01130825,88431.0,88415.0,0.01131029]
[1766336456036,0.01130837,88430.0,88414.0,0.06131042]
[1766336456237,0.01130837,88430.0,88415.0,0.01131029]
[1766336456524,0.01130825,88431.0,88414.0,0.06131042]
[1766336456877,0.0113085,88429.0,88414.0,0.05]
[1766336457387,0.13331,88429.0,88414.0,0.06131042]
[1766336457560,0.01130825,88431.0,88414.0,0.06131042]
[1766336458071,0.31593799,88433.0,88417.0,0.01131004]
[1766336458254,0.30463,88433.0,88419.0,0.01130978]
[1766336458522,0.05096,88432.0,88420.0,0.01130965]
[1766336458698,0.12036,88433.0,88419.0,0.01130978]
[1766336458699,0.05096,88431.0,88419.0,0.01130978]
[1766336458943,0.05096,88431.0,88418.0,0.01130991]
[1766336459125,0.05096,88431.0,88419.0,0.01130978]
[1766336459693,0.05096,88431.0,88420.0,0.01130965]
[1766336460364,0.05096,88431.0,88418.0,0.01130991]
[1766336460689,0.05096,88431.0,88417.0,0.01131004]
[1766336461245,0.05096,88431.0,88416.0,0.01131017]
[1766336461424,0.06226825,88431.0,88415.0,0.01131029]
[1766336461594,0.01130837,88430.0,88414.0,0.06131042]
[1766336461794,0.05096,88431.0,88417.0,0.01131004]
[1766336462028,0.05096,88431.0,88416.0,0.01131017]
[1766336462410,0.05096,88431.0,88417.0,0.01131004]
[1766336462618,0.05096,88431.0,88415.0,0.01131029]
[1766336462948,0.05096,88431.0,88417.0,0.01131004]
[1766336463247,0.05096,88431.0,88416.0,0.01131017]
[1766336463548,0.05096,88431.0,88414.0,0.05]
[1766336463714,0.01130863,88428.0,88414.0,0.05]
[1766336464128,0.06226825,88431.0,88414.0,0.05]
[1766336464330,0.05096,88431.0,88416.0,0.01131017]
[1766336465114,0.43063265,88454.0,88416.0,0.01131017]
[1766336465115,0.04528,88458.0,88442.0,0.01130684]
[1766336465318,0.04528,88458.0,88438.0,0.01130735]
[1766336465319,0.00010706,88458.0,88449.0,0.01130595]
[1766336465536,0.00010706,88458.0,88452.0,0.01130556]
[1766336465537,7.06e-06,88458.0,88452.0,0.01130556]
[1766336465781,0.02444279,88471.0,88454.0,0.05652655]
[1766336465914,0.05096,88470.0,88456.0,0.01130505]
[1766336466148,0.05096,88470.0,88457.0,0.01130492]
[1766336466566,0.05096,88470.0,88455.0,0.01130518]
[1766336466770,0.06226326,88470.0,88455.0,0.0248714]
[1766336466973,0.12781618,88472.0,88459.0,0.01130467]
[1766336467171,0.05096,88471.0,88460.0,0.46149054]
[1766336467592,0.00568,88470.0,88460.0,0.46149054]
[1766336467957,0.00568,88470.0,88458.0,0.0113048]
[1766336468224,0.00568,88470.0,88460.0,0.02720549]
[1766336468569,0.0001,88469.0,88460.0,0.02720549]
[1766336469797,0.00568,88468.0,88460.0,0.02720549]
[1766336471085,0.00568,88468.0,88455.0,0.01130518]
[1766336471291,0.00568,88468.0,88456.0,0.01130505]
[1766336472316,0.0001,88469.0,88456.0,0.01130505]
[1766336472515,0.00568,88468.0,88456.0,0.01130505]
[1766336472890,0.00568,88468.0,88455.0,0.01130518]
[1766336473121,0.00568,88468.0,88456.0,0.01130505]
[1766336473747,0.0001,88469.0,88456.0,0.01130505]
[1766336473958,0.00568,88467.0,88459.0,0.4610375]
[1766336474407,0.00568,88467.0,88451.0,0.00568]
[1766336474408,0.000375,88459.0,88451.0,0.00568]
[1766336474831,0.000375,88459.0,88450.0,0.4610375]
[1766336475033,0.00568,88460.0,88450.0,0.47234332]
[1766336475246,0.00568,88460.0,88451.0,0.01130569]
[1766336475620,0.00568,88460.0,88450.0,0.47234332]
[1766336476422,0.00568,88460.0,88450.0,0.4610375]
[1766336476823,0.00568,88460.0,88449.0,0.0001]
[1766336476824,0.000925,88450.0,88449.0,0.0001]
[1766336477000,0.000925,88450.0,88449.0,0.00020706]
[1766336477204,0.01698454,88460.0,88449.0,7.06e-06]
[1766336477655,0.00568,88460.0,88449.0,7.06e-06]
[1766336478285,0.00568,88460.0,88450.0,0.46113368]
[1766336479025,0.01130467,88459.0,88450.0,0.46113368]
[1766336479243,0.00568,88460.0,88449.0,7.06e-06]
[1766336479244,0.000925,88450.0,88449.0,7.06e-06]
[1766336479452,0.006605,88450.0,88449.0,7.06e-06]
[1766336479897,0.00568,88450.0,88449.0,7.06e-06]
[1766336481832,0.00568,88450.0,88440.0,0.46098674]
[1766336482773,0.00568,88450.0,88440.0,0.46113368]
[1766336484355,0.01698582,88450.0,88437.0,0.00568]
[1766336484522,0.00568,88450.0,88439.0,0.02720549]
[1766336484724,0.00568,88450.0,88440.0,0.46113368]
[1766336484976,0.00568,88450.0,88440.0,0.47244078]
[1766336485153,0.00568,88450.0,88441.0,0.01130697]
[1766336485883,0.00568,88450.0,88442.0,0.01130684]
[1766336487384,0.00568,88450.0,88441.0,0.01130697]
[1766336487385,0.000375,88442.0,88434.0,0.01130786]
[1766336487609,0.000375,88442.0,88439.0,0.02720549]
[1766336487761,0.000375,88442.0,88439.0,0.03851271]
[1766336487964,0.000375,88442.0,88428.0,0.00568]
[1766336487966,0.00055,88439.0,88428.0,0.00568]
[1766336488286,0.02720549,88438.0,88428.0,0.00568]
[1766336488710,0.02720549,88438.0,88427.0,0.01130876]
[1766336488879,0.02720549,88438.0,88428.0,0.01130863]
[1766336489735,0.02720549,88438.0,88426.0,0.01130889]
[1766336490227,0.02720549,88438.0,88425.0,0.01130901]
[1766336490640,0.02720549,88438.0,88426.0,0.01130889]
[1766336491333,0.02720549,88438.0,88425.0,0.01130901]
[1766336492553,0.02720549,88438.0,88424.0,0.01130914]
[1766336492910,0.02720549,88438.0,88425.0,0.01130901]
[1766336493107,0.03851259,88440.0,88424.0,0.01130914]
[1766336493346,0.03851259,88440.0,88425.0,0.01130901]
[1766336493851,0.02720549,88440.0,88426.0,0.01130889]
[1766336494402,0.00568,88442.0,88431.0,0.01130825]
[1766336494610,0.12402,88454.0,88414.0,0.05]
[1766336494611,0.00568,88465.0,88447.0,0.05653102]
[1766336494908,0.00568,88465.0,88446.0,0.01130633]
[1766336494909,0.04528,88477.0,88457.0,0.01130492]
[1766336494910,0.00429488,88472.0,88457.0,0.01130492]
[1766336495115,0.00429488,88472.0,88460.0,0.46113368]
[1766336495545,0.00429488,88472.0,88460.0,0.47243822]
[1766336496241,0.01130237,88477.0,88461.0,0.01130441]
[1766336496443,0.00568,88476.0,88467.0,0.46113368]
[1766336498074,0.00568,88476.0,88466.0,0.01698377]
[1766336498494,0.00568,88476.0,88466.0,0.00568]
[1766336499464,0.00568,88476.0,88468.0,0.01130352]
[1766336499663,0.00568,88476.0,88469.0,0.01130339]
[1766336499912,0.00568,88476.0,88468.0,0.01130352]
[1766336500115,0.00568,88476.0,88467.0,0.01130364]
[1766336500543,0.00568,88476.0,88467.0,0.0678217]
[1766336500754,0.00568,88476.0,88468.0,0.01130352]
[1766336501102,0.00568,88476.0,88467.0,0.01130364]
[1766336502011,0.0057607,88476.0,88467.0,0.01130364]
[1766336502668,0.0057607,88476.0,88466.0,0.01698377]
[1766336503828,8.07e-05,88476.0,88467.0,0.01130364]
[1766336503988,0.0001,88482.0,88476.0,9.33e-05]
[1766336504379,0.0001,88482.0,88469.0,0.01130339]
[1766336504964,0.0001,88482.0,88468.0,0.01130352]
[1766336505371,0.00568,88481.0,88468.0,0.01130352]
[1766336505569,0.00568,88481.0,88469.0,0.01130339]
[1766336505817,0.00568,88481.0,88470.0,0.01130326]
[1766336506616,0.00568,88481.0,88469.0,0.02486746]
[1766336506617,0.00568,88481.0,88469.0,0.01130339]
[1766336507011,0.00568,88481.0,88468.0,0.01130352]
[1766336507391,0.00568,88481.0,88467.0,0.01130364]
[1766336507609,0.00568,88481.0,88468.0,0.01130352]
[1766336508934,0.00568,88481.0,88469.0,0.01130339]
[1766336509923,0.00568,88481.0,88470.0,0.01130326]
[1766336510096,0.00568,88481.0,88469.0,0.01130339]
[1766336510651,0.00568,88481.0,88468.0,0.01130352]
[1766336510825,0.00568,88481.0,88467.0,8.07e-05]
[1766336511154,0.11847,88480.0,88467.0,8.07e-05]
[1766336512015,0.12977198,88480.0,88467.0,8.07e-05]
[1766336512225,0.11847,88480.0,88467.0,8.07e-05]
[1766336513268,0.01130211,88479.0,88467.0,8.07e-05]
[1766336513627,0.0001,88478.0,88467.0,8.07e-05]
[1766336514257,0.01140224,88478.0,88467.0,8.07e-05]
[1766336514783,0.01140224,88478.0,88468.0,0.00568]
[1766336515332,0.01130237,88477.0,88468.0,0.00568]
[1766336515540,0.0113025,88476.0,88468.0,0.00548]
[1766336515738,0.01130237,88477.0,88468.0,0.00548]
[1766336516515,0.0113025,88476.0,88468.0,0.00548]
[1766336516857,0.0113025,88476.0,88467.0,0.0057607]
[1766336517055,0.01140224,88478.0,88467.0,0.0057607]
[1766336517790,0.01130237,88477.0,88467.0,0.0057607]
[1766336518862,0.01140224,88478.0,88467.0,0.0057607]
[1766336520584,0.0001,88478.0,88467.0,0.0057607]
[1766336520786,0.01140224,88478.0,88467.0,0.0057607]
[1766336522025,0.01130237,88477.0,88467.0,0.0057607]
[1766336522347,0.01130262,88475.0,88467.0,0.0057607]
[1766336522524,0.01130262,88475.0,88466.0,0.00568]
[1766336522525,0.0004693,88467.0,88466.0,0.00568]
[1766336522747,9.679e-05,88467.0,88466.0,0.00568]
[1766336523659,0.06781562,88476.0,88466.0,0.00568]
[1766336523660,0.00568,88481.0,88466.0,0.00568]
[1766336524142,0.00568,88481.0,88468.0,0.46099572]
[1766336524339,0.01130198,88480.0,88468.0,0.46099572]
[1766336524549,0.01698186,88481.0,88468.0,0.46099572]
[1766336525309,0.01130198,88480.0,88468.0,0.46099572]
[1766336525709,0.01698186,88481.0,88468.0,0.46099572]
[1766336526115,0.04418735,88481.0,88468.0,0.46099572]
[1766336528509,0.0001,88477.0,88468.0,0.46099572]
[1766336529003,0.000469,88468.0,88466.0,0.00568]
[1766336529701,0.12067,88472.0,88466.0,0.00568]
[1766336529853,0.02720549,88467.0,88466.0,0.00568]
[1766336530058,0.13197301,88472.0,88466.0,0.00568]
[1766336530734,0.01130313,88471.0,88466.0,0.00568]
[1766336530903,0.01130313,88471.0,88459.0,0.00568]
[1766336531224,0.12067,88472.0,88459.0,0.00568]
[1766336531404,0.01130301,88472.0,88460.0,0.46099572]
[1766336531608,0.01698288,88473.0,88460.0,0.46099572]
[1766336532229,0.01130313,88471.0,88460.0,0.46099572]
[1766336533961,0.01130326,88470.0,88459.0,0.00568]